[Event "Ramat Gan Masters-A Winter 2023"]
[Site "Ramat Gan/ISR"]
[Date "2023.01.23"]
[Round "2.3"]
[White "Goz, Shachar"]
[Black "Chernomordik, Pavel"]
[Result "1/2-1/2"]
[Annotator "TA"]
[ECO "B23"]
[WhiteElo "1623"]
[BlackElo "2198"]
[PlyCount "121"]
[EventDate "2023.01.17"]
[EventType "swiss"]
[SourceTitle "playchess.com"]
[Source "ChessBase"]
[SourceQuality "1"]
[TimeControl "5400+30"]

{[%evp 11,121,4,16,-29,-19,-23,-32,-34,0,-8,-3,-15,0,0,0,-15,-12,-23,-23,-10,-14,-50,-50,-45,-35,-37,-11,-82,-81,-89,-89,-86,-56,-66,-69,-66,-66,-76,-64,-65,0,0,0,0,0,0,0,0,-8,-17,-27,-21,44,-13,337,-31,-1,-128,-72,-123,-89,-109,-120,-94,-88,-81,-81,-50,0,0,0,0,0,0,0,-172,-178,-182,-192,-131,-104,-527,-507,-478,-464,-444,-418,-967,-911,-1436,0,0,0,0,0,0,0,0,0,0,0,0,0,0,0,0,0,0,0,0,0,0]} 1. f4 {[%emt 0:00:07]} g6 {[%emt 0:01:17]} 2. e4 {[%emt 0:00:07]} Bg7 {[%emt 0:00:02]} 3. Nf3 {[%emt 0:00:06]} d6 {[%emt 0:00:35]} 4. Nc3 {[%emt 0:00:18]} c5 {[%emt 0:02:05]} 5. Bb5+ {[%emt 0:00:18]} Nc6 {[%emt 0:00:38]} 6. O-O {[%emt 0:00:12]} Bd7 {[%emt 0:00:52]} 7. Ne2 {[%emt 0:01:46] B23: Closed Sicilian: Lines without g3.} a6 {[%emt 0:00:55]} 8. Bxc6 {[%emt 0:00:34]} Bxc6 {[%emt 0:00:02]} 9. Ng3 {[%emt 0:00:01] [#] Black is slightly better.} d5 $146 {[%emt 0:02:15]} ({Predecessor:} 9... Nf6 10. d3 O-O 11. f5 e6 12. fxg6 fxg6 13. Ng5 Qe7 14. h4 h6 15. Nh3 Nd7 16. Nf4 Bd4+ 17. Kh1 Qxh4+ {0-1 Grinsteinner,R (1552)-Fuhrwerk,K (2163) VW-Cup9 Gr17 email 2016}) 10. e5 {[%emt 0:02:02]} d4 {[%emt 0:00:54]} 11. c4 {[%emt 0:00:45][%cal Ob2b4]} b5 {[%emt 0:06:45]} 12. d3 {[%emt 0:05:43]} Nh6 {[%emt 0:04:17]} 13. b3 {[%emt 0:03:15]} O-O {[%emt 0:02:47]} 14. Qc2 {[%emt 0:00:48]} Rc8 {[%emt 0:01:23]} 15. h3 {[%emt 0:02:56]} Qd7 {[%emt 0:03:10]} 16. Ba3 {[%emt 0:02:19]} b4 {[%emt 0:07:53]} 17. Bb2 {[%emt 0:02:07]} f6 {[%emt 0:01:08]} 18. Rae1 {[%emt 0:03:00]} Qc7 {[%emt 0:08:15]} 19. exf6 {[%emt 0:04:14]} (19. Bc1 $11) 19... exf6 $17 {[%emt 0:01:52]} 20. Bc1 {[%emt 0:03:24]} Rfe8 {[%emt 0:03:46]} 21. Qf2 {[%emt 0:01:04][%cal Of4f5]} Bd7 {[%emt 0:08:33] Dodges f5} 22. Rxe8+ {[%emt 0:09:37]} Rxe8 {[%emt 0:00:17]} 23. Re1 {[%emt 0:00:03]} Rxe1+ {[%emt 0:07:27]} 24. Qxe1 {[%emt 0:00:24]} Kf7 {[%emt 0:00:38] Against Qe7+} (24... Nf5 {simplifies} 25. Nh1 Bc8 26. g4 Nd6) 25. a3 {[%emt 0:01:15]} bxa3 {[%emt 0:01:23]} ({Black should try} 25... a5 $1 $15) 26. Bxa3 $11 {[%emt 0:00:02]} Bf8 {[%emt 0:00:11]} 27. Ne4 {[%emt 0:06:50] Threatens to win with Qh4.} Nf5 {[%emt 0:03:40] Wards off Qh4} 28. b4 {[%emt 0:00:42][%cal Rb4c5]} Qxf4 {[%emt 0:04:01]} 29. bxc5 {[%emt 0:06:34]} Bh6 {[%emt 0:06:30]} ({Resist} 29... Qe3+ 30. Qxe3 dxe3 31. g4 $16) (29... Bc6 {feels hotter.} 30. Neg5+ fxg5 31. Ne5+ Ke8) 30. Nd6+ {[%emt 0:05:40]} (30. Bb4 {simplifies} Qe3+ 31. Qxe3 Bxe3+ 32. Kf1) 30... Nxd6 {[%emt 0:04:01]} 31. cxd6 {[%emt 0:01:29] Threatening mate with Qe7+.} Bf8 {[%emt 0:01:21] Wards off Qe7+} (31... Qe3+ $11 32. Qxe3 Bxe3+ 33. Kf1 a5) 32. Qe4 {[%emt 0:01:49]} ({Better is} 32. c5 $14) 32... Bxd6 $2 {[%emt 0:01:50][%mdl 8192]} (32... Qxe4 $1 $11 33. dxe4 Ke6) 33. Bxd6 $2 {[%emt 0:00:35]} ({Only move:} 33. Qd5+ $18 Be6 34. Qxd6 (34. Bxd6 $2 {loses.} Qe3+ 35. Kh1 Bxd5 $19) 34... Qxd6 35. Bxd6) 33... Qxd6 $15 {[%emt 0:00:03]} 34. Qxd4 {[%emt 0:00:07]} (34. Kf2 $11) 34... Qxd4+ $17 {[%emt 0:01:59]} 35. Nxd4 $11 {[%emt 0:00:01][%mdl 4096] Endgame KB-KN} a5 {[%emt 0:00:01]} 36. Kf2 {[%emt 0:00:12]} a4 {[%emt 0:00:43]} 37. Nc2 {[%emt 0:00:05]} Ke6 {[%emt 0:00:46]} 38. Ke3 {[%emt 0:00:08]} Kd6 {[%emt 0:00:43]} 39. Kd4 {[%emt 0:00:30]} g5 {[%emt 0:02:33]} (39... Bc6 $15 40. g3 g5) 40. c5+ {[%emt 0:02:52]} Kc6 {[%emt 0:01:18]} 41. Kc4 {[%emt 0:00:06]} Be6+ {[%emt 0:01:00]} 42. Kb4 {[%emt 0:01:10]} Kd5 {[%emt 0:00:43] Prevents Nd4.} 43. g4 $2 {[%emt 0:01:43]} (43. d4 $11) 43... Bd7 $19 {[%emt 0:01:09]} 44. d4 {[%emt 0:09:59] [#]} Ke4 $1 {[%emt 0:02:24]} 45. Kc4 {[%emt 0:00:58] [#]} Be6+ {[%emt 0:00:46]} 46. Kb4 $2 {[%emt 0:00:05][%mdl 8192]} (46. Kb5 $17 {nothing else works.}) 46... Kd3 {[%emt 0:01:43]} 47. Na3 {[%emt 0:01:38]} Kxd4 {[%emt 0:00:54]} 48. Nb5+ {[%emt 0:00:11]} Ke5 {[%emt 0:00:17]} 49. c6 {[%emt 0:02:01]} (49. Nd6 $142 Bd7 50. Nf7+ Kd5 51. Nd6) 49... f5 {[%emt 0:01:43]} 50. Nc7 {[%emt 0:00:25]} f4 $2 {[%emt 0:01:56]} (50... fxg4 $19 51. hxg4 Bxg4) 51. Nxe6 $1 $11 {[%emt 0:00:28] The position is equal.} Kxe6 {[%emt 0:00:02] KP-KP} 52. Kb5 {[%emt 0:00:34][%cal Ob5b6] Hoping for Kb6!} a3 {[%emt 0:03:03]} (52... f3 $5 53. Kb6 $8 Kf7 $11) 53. Kb6 $1 {[%emt 0:00:06] Black must now prevent c7.} a2 {[%emt 0:00:26]} (53... Kd5 $5 54. c7 $8 a2 $11) 54. c7 {[%emt 0:00:04]} a1=Q {[%emt 0:00:13] ( -> ...Qc3)} (54... a1=B 55. c8=Q+ (55. c8=R $2 {too greedy.} f3 $19) 55... Ke5 56. Qh8+ Ke4 57. Qxa1 Kf3 58. Qg1 Ke2 59. Qg2+ Ke3 60. Qf1) (54... Kd7 $5 55. Kb7 $8 Kd6 $11) 55. c8=Q+ {[%emt 0:00:07] KQ-KQ} Kf7 {[%emt 0:00:06]} 56. Qd7+ {[%emt 0:01:04]} Kf8 {[%emt 0:00:48] ...Qf6+ is the strong threat.} (56... Kg8 $5 {[%cal Ra1f6]} 57. Qd5+ Kf8 58. Qf5+ Ke8 $11) 57. Qd8+ {[%emt 0:00:49]} Kf7 {[%emt 0:00:42] And now ...Qf6+ would win.} 58. Qd7+ {[%emt 0:00:05]} Kg6 {[%emt 0:00:30]} 59. Qe8+ {[%emt 0:00:05]} Kg7 {[%emt 0:00:16] aiming for ...Qf6+.} 60. Qe7+ {[%emt 0:00:27]} Kg6 {[%emt 0:00:13] ...Qf6+ would be deadly.} 61. Qe8+ {[%emt 0:00:05] White happily takes the draw.   Weighted Error Value: White=0.53/Black=0.27 (precise)} 1/2-1/2

[Event "Ramat Gan Masters-A Winter 2023"]
[Site "Ramat Gan/ISR"]
[Date "2023.01.23"]
[Round "2.4"]
[White "Gavriely, Or"]
[Black "Malachi, Avraham"]
[Result "1-0"]
[Annotator "TA"]
[ECO "E73"]
[WhiteElo "1991"]
[BlackElo "1975"]
[PlyCount "47"]
[EventDate "2023.01.17"]
[EventType "swiss"]
[SourceTitle "playchess.com"]
[Source "ChessBase"]
[SourceQuality "1"]
[TimeControl "5400+30"]

{[%evp 14,47,70,71,127,39,58,53,124,90,175,111,118,125,202,110,220,215,225,209,304,195,358,296,444,472,578,558,696,747,780,778,1880,1847,1780,1665]} 1. d4 {[%emt 0:00:02]} Nf6 {[%emt 0:00:05]} 2. c4 {[%emt 0:00:32]} g6 {[%emt 0:00:06]} 3. Nc3 {[%emt 0:00:02]} Bg7 {[%emt 0:00:06]} 4. e4 {[%emt 0:00:02]} d6 {[%emt 0:00:06]} 5. Be2 {[%emt 0:00:04]} O-O {[%emt 0:00:10]} 6. Be3 {[%emt 0:00:04]} e5 {[%emt 0:01:14]} 7. d5 {[%emt 0:00:10]} a5 {[%emt 0:00:34]} 8. g4 {[%emt 0:00:08]} Ne8 {[%emt 0:00:15] [#] E73: King's Indian: Averbakh Variation without 6...c5.} (8... Na6 $142) 9. g5 {[%emt 0:00:07] White is more active.} ({Better is} 9. h4 $1 $16) 9... f5 $14 {[%emt 0:01:54]} 10. gxf6 {[%emt 0:00:11]} Qxf6 {[%emt 0:10:44]} (10... Nxf6 $14 11. h4 Nbd7) 11. Qd2 {[%emt 0:06:25] [#]} h6 $146 {[%emt 0:27:58]} ({Predecessor:} 11... Na6 12. O-O-O Nc5 13. h4 Qf7 14. h5 Nf6 15. h6 Bh8 16. Rh4 Bd7 17. Nf3 Qe8 {1-0 Astengo,M (2032)-Pfeufer,L Bolzano op 15th 2000 (8)}) 12. h4 {[%emt 0:04:28]} (12. O-O-O $18) 12... Na6 $16 {[%emt 0:01:22]} 13. O-O-O {[%emt 0:01:09]} Kh7 {[%emt 0:00:12]} (13... Nc5 $16) 14. Nh3 {[%emt 0:10:52]} (14. Nf3 $18) 14... Bxh3 {[%emt 0:11:16]} (14... Qe7 $16) 15. Rxh3 $18 {[%emt 0:00:02][%cal Bh1h3,Bh3f3,Bf3f7][%mdl 32]} Nc5 {[%emt 0:06:08]} 16. Rg1 {[%emt 0:23:52]} Rg8 {[%emt 0:03:54]} (16... Qe7 $142 17. b3 Rf7) 17. Bg4 {[%emt 0:07:57] And now Rhg3 would win.} Bf8 $2 {[%emt 0:10:39]} (17... Qe7 {keeps fighting.} 18. Rhg3 Nf6) 18. Bg5 {[%emt 0:14:30]} Qf7 {[%emt 0:06:06]} (18... Qg7 {might work better.} 19. h5 hxg5 20. hxg6+ (20. Qxg5 Rh8 $16) 20... Kxg6) 19. Rf3 {[%emt 0:03:33] White is clearly winning.} Qg7 {[%emt 0:00:22]} 20. Be6 {[%emt 0:01:10]} Nxe6 {[%emt 0:03:08]} 21. dxe6 {[%emt 0:00:06]} hxg5 {[%emt 0:02:01]} 22. Rf7 {[%emt 0:00:03]} gxh4 {[%emt 0:00:41]} 23. Qg5 {[%emt 0:06:49][%cal Rg5h4] [#]} ({Not} 23. Rxg7+ Nxg7 24. Qg5 Nxe6 25. Qxh4+ Bh6+ 26. Kb1 g5 $18) 23... Kh8 {[%emt 0:01:10]} 24. Rh1 {[%emt 0:02:25] Weighted Error Value: White=0.35/Black=0.89} ({Worse is} 24. Qxh4+ Qh6+ 25. Qxh6+ Bxh6+ $15) 1-0

[Event "Ramat Gan Masters-A Winter 2023"]
[Site "Ramat Gan/ISR"]
[Date "2023.01.23"]
[Round "2.5"]
[White "Azoulay, Yehonatan"]
[Black "Aroeta, Benny"]
[Result "0-1"]
[Annotator "TA"]
[ECO "C47"]
[WhiteElo "1770"]
[BlackElo "1978"]
[PlyCount "86"]
[EventDate "2023.01.17"]
[EventType "swiss"]
[SourceTitle "playchess.com"]
[Source "ChessBase"]
[SourceQuality "1"]
[TimeControl "5400+30"]

{[%evp 16,85,0,0,2,0,0,-89,35,-14,-14,-16,-21,-22,-4,-29,0,-24,0,-6,0,0,13,6,12,12,11,10,37,-2,0,-31,34,-4,26,-59,-53,-192,-204,-224,-43,-287,-298,-421,-340,-417,-298,-428,-297,-504,-482,-29987,-29988,-29996,-202,-1339,-1372,-29992,-29993,-29993,-29990,-29990,-29991,-29991,-29992,-29992,-29991,-29991,-29990,-29998,-29999,-29999]} 1. e4 {[%emt 0:00:01]} e5 {[%emt 0:16:36]} 2. Nf3 {[%emt 0:00:09]} Nf6 {[%emt 0:00:05]} 3. Nc3 {[%emt 0:00:11]} Nc6 {[%emt 0:00:59]} 4. d4 {[%emt 0:04:04]} exd4 {[%emt 0:00:09]} 5. Nxd4 {[%emt 0:00:05]} Bb4 {[%emt 0:00:23]} 6. Nxc6 {[%emt 0:00:09]} bxc6 {[%emt 0:00:04]} 7. Bd3 {[%emt 0:00:08]} d5 {[%emt 0:01:06]} 8. Bd2 {[%emt 0:00:07]} O-O {[%emt 0:01:53]} 9. O-O {[%emt 0:00:02]} Re8 {[%emt 0:10:53] C47: Scotch Four Knights and Four Knights with 4 g3.} 10. Re1 {[%emt 0:00:20]} Bg4 {[%emt 0:01:38]} 11. Qc1 {[%emt 0:00:46]} (11. f3 $11 {keeps the balance.} dxe4 12. Bxe4 Nxe4 13. Nxe4 Qd4+ 14. Kh1 Bxd2 15. Nxd2) 11... Bh5 {[%emt 0:16:11]} (11... dxe4 $1 $17 12. Bc4 Qd4) 12. a3 {[%emt 0:07:48]} (12. Nxd5 $14 Nxd5 13. exd5 Rxe1+ 14. Qxe1 Bxd2 15. Qxd2) 12... Bxc3 $11 {[%emt 0:03:58]} 13. Bxc3 {[%emt 0:00:07]} Nxe4 {[%emt 0:00:26]} 14. Bxe4 {[%emt 0:00:07]} dxe4 {[%emt 0:00:54] [#]} 15. Qe3 $146 {[%emt 0:00:33]} ({Predecessor:} 15. Qf4 Qe7 16. Re3 Rad8 17. Rg3 Bg6 18. h4 Rd5 19. Re1 Qd6 20. Qe3 Qc5 21. Qxc5 Rxc5 {1-0 Castro Castro,J (1493)-Claro Molinares,S (1638) COL Intercollegiate-ch 2022 (2.5)}) 15... Qe7 {[%emt 0:04:20]} 16. Qg3 {[%emt 0:01:38][%csl Gc3][%cal Rg3g7]} f5 {[%emt 0:05:36]} 17. Qf4 {[%emt 0:01:50]} Qf7 {[%emt 0:01:37]} 18. Re3 {[%emt 0:01:57]} Re6 {[%emt 0:02:38][%cal Oh5f3] Black is weak on the dark squares} 19. Rg3 {[%emt 0:00:59] Inhibits Bf3.} Rg6 {[%emt 0:00:58]} 20. Rxg6 {[%emt 0:00:03]} hxg6 {[%emt 0:00:52]} 21. h3 {[%emt 0:01:11]} Rd8 {[%emt 0:03:17]} 22. Kh2 {[%emt 0:02:53][%mdl 1024] White has compensation.} Rd5 {[%emt 0:05:13]} 23. Rg1 {[%emt 0:01:20] [#]} g5 {[%emt 0:01:37]} 24. Qe3 {[%emt 0:02:55]} (24. Qxg5 $5 {[%cal Rc3g7]} Bd1 25. Qc1 $14) 24... c5 {[%emt 0:06:06]} 25. g3 {[%emt 0:05:18]} (25. Qxg5 $11 Bd1 26. Qc1) 25... Qe7 $15 {[%emt 0:05:50]} 26. Bd2 {[%emt 0:03:36]} (26. Re1 $15) 26... Qd6 $19 {[%emt 0:04:33]} 27. Bc3 {[%emt 0:00:13] [#]} Qd8 {[%emt 0:00:44]} ({Black should try} 27... Qh6 $1 $19 {Hoping for ...Bf3.} 28. Ba5 Bf3 29. Bxc7 Kh7) 28. a4 $2 {[%emt 0:07:00]} ({Better is} 28. g4 $15 Qd6+ 29. Kh1 fxg4 30. hxg4) 28... Bf3 {[%emt 0:00:29]} 29. Re1 {[%emt 0:01:41]} (29. b3 {was called for.}) 29... c6 {[%emt 0:01:39][%cal Of5f4]} 30. a5 {[%emt 0:00:48]} Kh7 {[%emt 0:01:05][%cal Of5f4] And now ...f4! would win.} 31. a6 {[%emt 0:02:30]} (31. Rg1 $142) 31... Kg6 {[%emt 0:00:22][%cal Of5f4] aiming for ...f4!} 32. b3 $2 {[%emt 0:09:25]} (32. Rg1) 32... Qh8 {[%emt 0:00:19][%cal Of5f4] Strongly threatening ...f4!} 33. Bd2 {[%emt 0:01:16] [#]} (33. Rg1 $19 Bg4 34. Rh1) 33... f4 $1 {[%emt 0:00:31][%cal Bf5f4,Bf4g3][%mdl 544]} 34. Qc3 {[%emt 0:01:09]} (34. Qxf3 exf3) 34... Bg4 $2 {[%emt 0:01:20]} (34... Qxh3+ {mates} 35. Kxh3 g4+ 36. Kh2 Rh5+ 37. Kg1 Rh1#) 35. h4 $2 {[%emt 0:00:18]} (35. gxf4 Bf3 36. Rg1 (36. fxg5 $2 {loses.} Qb8+ 37. Kg1 Qh8 $19)) 35... e3 {[%emt 0:01:36][%mdl 64] Deflection} ({Not} 35... gxh4 36. gxf4 Bf3 37. Rg1+ Kh7 38. b4 $15) 36. fxe3 {[%emt 0:04:18]} fxg3+ {[%emt 0:00:18] Black mates.} ({And not} 36... gxh4 37. gxf4 Qd8 38. Bc1 $11) 37. Kg2 {[%emt 0:00:20]} Qxh4 {[%emt 0:00:24]} 38. Rh1 {[%emt 0:00:06] [#]} Bf3+ $1 {[%emt 0:00:16][%mdl 576] Skewer, Decoy} 39. Kxf3 {[%emt 0:00:05]} Qxh1+ {[%emt 0:00:07]} 40. Kxg3 {[%emt 0:00:09]} Qh4+ {[%emt 0:01:04]} 41. Kf3 {[%emt 0:00:08]} Qh3+ {[%emt 0:00:38]} 42. Kf2 {[%emt 0:00:07]} Rf5+ {[%emt 0:00:16]} 43. Ke2 {[%emt 0:00:03]} Qf1# {[%emt 0:00:09] Beautiful play by Aroeta!   Weighted Error Value: White=0.89/Black=0.44} 0-1

[Event "Ramat Gan Masters-A Winter 2023"]
[Site "Ramat Gan/ISR"]
[Date "2023.01.23"]
[Round "2.6"]
[White "Kochavi, Dana"]
[Black "Neumann, Amit"]
[Result "1-0"]
[Annotator "TA"]
[ECO "B56"]
[WhiteElo "1956"]
[BlackElo "1615"]
[PlyCount "115"]
[EventDate "2023.01.17"]
[EventType "swiss"]
[SourceTitle "playchess.com"]
[Source "ChessBase"]
[SourceQuality "1"]
[TimeControl "5400+30"]

{[%evp 12,115,6,-31,42,15,18,26,9,4,12,18,15,-16,34,16,9,21,111,90,93,102,108,106,147,96,105,107,200,50,157,138,158,155,162,156,152,144,145,145,182,204,204,213,271,281,326,320,335,331,387,338,427,428,407,413,385,287,275,253,446,440,438,408,474,471,457,438,606,598,12831,12831,12832,12832,1934,770,581,571,546,400,541,518,495,485,129,1145,918,898,901,696,12837,12838,12838,12837,12840,12840,12841,12841,12841,12842,12842,12841,12843,12837,12839,12838]} 1. e4 {[%emt 0:00:06]} c5 {[%emt 0:00:07]} 2. Nf3 {[%emt 0:00:31]} d6 {[%emt 0:00:11]} 3. d4 {[%emt 0:00:05]} cxd4 {[%emt 0:00:13]} 4. Nxd4 {[%emt 0:00:06]} Nf6 {[%emt 0:00:07]} 5. Nc3 {[%emt 0:00:04]} Nc6 {[%emt 0:00:06]} 6. h3 {[%emt 0:00:27]} e5 {[%emt 0:01:56]} 7. Nde2 {[%emt 0:01:27]} Be7 {[%emt 0:01:09] B56: Classical Sicilian: Unusual Lines.} ({Black should play} 7... Be6 $15) 8. g4 $14 {[%emt 0:04:06]} Be6 {[%emt 0:01:31]} 9. Bg2 {[%emt 0:03:13]} h5 {[%emt 0:05:44] White has an edge.} 10. g5 {[%emt 0:00:13] [#]} Nh7 $146 {[%emt 0:00:19]} ({Predecessor:} 10... Nd7 11. h4 Nb6 12. b3 Rc8 13. Be3 Nb4 14. a3 Na6 15. a4 Bg4 16. f3 Be6 {½-½ Steel,H (2241)-Van den Heever,D (2202) RSA-ch Milnerton 2007 (5)}) 11. h4 {[%emt 0:00:18]} f6 $1 {[%emt 0:01:22][%cal Rf6g5]} 12. Ng3 {[%emt 0:11:11]} (12. g6 $5 Nf8 $8 13. Ng3 $11) 12... g6 {[%emt 0:02:21] [#]} (12... fxg5 $11 13. Nxh5 (13. Qxh5+ g6 $17) 13... O-O) 13. Nxh5 $1 {[%emt 0:03:32]} gxh5 {[%emt 0:09:56]} 14. g6 $36 {[%emt 0:01:35][%cal Od1h5][%mdl 2048] Qxh5! is the strong threat. Black is under pressure.} Nf8 {[%emt 0:02:14]} (14... Qd7 $1 $11) 15. g7 $16 {[%emt 0:00:06][%csl LRf8,LRh8]} Rg8 {[%emt 0:00:16]} 16. gxf8=Q+ (16. gxf8=B $6 Rxg2 17. Bxe7 (17. Qxh5+ Kxf8 18. Kf1 Rg4 $11) 17... Kxe7 $11) (16. Qxh5+ $2 Bf7 17. gxf8=Q+ (17. gxf8=R+ $2 Bxf8 18. Qd1 Rxg2 $19) 17... Bxf8 $19) 16... Bxf8 {[%emt 0:00:13] [#]} 17. Bf3 {[%emt 0:00:32]} (17. Qxh5+ $2 Bf7 18. Qd1 (18. Qf3 $2 Nd4 $19 {[%mdl 64] Deflection, Double Attack}) 18... Rxg2 $19) 17... Bg4 {[%emt 0:00:21]} 18. Be3 {[%emt 0:02:31]} ({Better is} 18. Nd5) 18... Qd7 {[%emt 0:11:01]} 19. Nd5 {[%emt 0:04:29]} Be7 {[%emt 0:02:26]} (19... Qf7 $16) 20. Qe2 {[%emt 0:02:01]} (20. Bxg4 $18 Rxg4 21. Qd3) 20... O-O-O {[%emt 0:05:49] [#]} (20... Kf7 $1 $14) 21. Bxa7 $1 {[%emt 1:04:27][%mdl 576] Remove Defender. White is much more active.} Bxf3 {[%emt 0:04:44]} 22. Qxf3 {[%emt 0:00:00] aiming for Nb6+.} Qg4 {[%emt 0:00:05]} 23. Qxg4+ {[%emt 0:00:00]} Rxg4 {[%emt 0:00:11]} 24. f3 {[%emt 0:00:00]} Rg2 {[%emt 0:02:17][%cal Og2c2]} 25. O-O-O {[%emt 0:00:00]} Nxa7 {[%emt 0:03:30]} 26. Nxe7+ {[%emt 0:00:00]} Kd7 {[%emt 0:45:21]} 27. Nf5 {[%emt 0:00:00]} Kc7 {[%emt 0:00:00]} 28. Rhg1 {[%emt 0:00:00]} Rf2 {[%emt 0:00:00]} 29. Rg7+ {[%emt 0:00:00]} Kb8 {[%emt 0:00:00]} 30. Nxd6 {[%emt 0:00:00]} Nc6 {[%emt 0:00:00]} 31. c3 {[%emt 0:00:00] Repels Nd4} (31. Nxb7 Rxd1+ 32. Kxd1 Nd4 $18) 31... Nd4 {[%emt 0:00:00]} 32. Rxb7+ {[%emt 0:00:00]} ({Stronger than} 32. Nxb7 Ne2+ 33. Kc2 Nxc3+ 34. Kxc3 Rxd1 $17) 32... Ka8 {[%emt 0:00:00]} 33. cxd4 {[%emt 0:00:00]} Rxd6 $18 {[%emt 0:00:00][%mdl 4096] Endgame KRR-KRR} 34. Rb3 {[%emt 0:00:00] Strongly threatening dxe5.} exd4 {[%emt 0:00:00]} 35. Rbd3 {[%emt 0:00:00]} Rh2 $2 {[%emt 0:00:00]} (35... Rb6 {was worth a try.} 36. R1d2 (36. Rxd4 Rbxb2 37. R4d2 Rbxd2 $18) 36... Rf1+ 37. Kc2 Rc6+ 38. Kb3 Rh1) 36. Rxd4 {[%emt 0:00:00]} Rc6+ {[%emt 0:00:00]} 37. Kb1 {[%emt 0:00:00]} Rxh4 {[%emt 0:00:00]} 38. Rb4 {[%emt 0:00:00]} Rh2 {[%emt 0:00:00]} 39. a3 {[%emt 0:00:00]} h4 {[%emt 0:00:00]} 40. Rd5 {[%emt 0:00:00] Intending Ra5+ and mate.} Ka7 {[%emt 0:00:22]} 41. Ra5+ {[%emt 0:00:00]} Ra6 {[%emt 0:00:28]} 42. Rab5 {[%emt 0:00:00] Threatening mate with Rb7+.} ({Weaker is} 42. Rh5 Re6 43. Ra5+ Ra6 $18) 42... Rd6 {[%emt 0:01:06]} 43. Rb7+ {[%emt 0:00:00]} (43. f4 $142 h3 44. Ka2) 43... Ka6 {[%emt 0:01:20]} 44. Rb8 {[%emt 0:00:00][%cal Rb8a8]} Ka7 {[%emt 0:00:08] Against Ra8+} 45. R4b7+ {[%emt 0:00:00]} Ka6 {[%emt 0:00:08]} 46. Rb3 {[%emt 0:00:00][%cal Rb8a8]} Ka7 {[%emt 0:00:19] Wards off Ra8+} 47. f4 {[%emt 0:00:00]} Rd1+ {[%emt 0:04:50]} (47... Re2 $142 48. R8b4 Rd1+ 49. Ka2 Rd6) 48. Ka2 {[%emt 0:00:00] Black cannot hold the game after this.} Rhh1 {[%emt 0:00:03] White is clearly winning.} 49. R3b7+ {[%emt 0:00:00]} Ka6 {[%emt 0:00:04]} 50. Rf7 {[%emt 0:00:00]} Rde1 {[%emt 0:02:13]} 51. Rxf6+ {[%emt 0:00:00]} Ka7 {[%emt 0:00:00]} 52. Re8 {[%emt 0:00:00] Re7+ would kill now.} Rc1 {[%emt 0:01:01]} 53. Re7+ {[%emt 0:00:00]} Kb8 {[%emt 0:00:03]} 54. Rf8+ {[%emt 0:00:00]} Rc8 {[%emt 0:00:04]} 55. Rxc8+ {[%emt 0:00:00]} Kxc8 {[%emt 0:00:05]} 56. e5 {[%emt 0:00:00][%cal Be4e5,Be5e6][%mdl 32]} h3 {[%emt 0:00:07]} 57. e6 {[%emt 0:00:00]} h2 {[%emt 0:00:13]} 58. Rh7 {[%emt 0:00:00] Weighted Error Value: White=0.17 (very precise) /Black=0.40} 1-0